fUSD/lending_fUSD_20251210
["ID","MTS","AMOUNT","RATE_DAILY","PERIOD"]
[398038777,1765325432283,-788.6,0.00013699,2]
[398038778,1765325432293,-966.31,0.000143,5]
[398038779,1765325432302,-5520.0,0.000148,3]
[398038780,1765325432311,-5524.0,0.000151,5]
[398038781,1765325432321,-300.0,0.00015299,2]
[398038782,1765325432330,-1200.0,0.00015299,2]
[398038783,1765325432339,-300.0,0.00015299,2]
[398038784,1765325432348,-480.60611659,0.00015883,2]
[398038785,1765325432357,-369.50039796,0.000159,2]
[398038786,1765325432367,-369.50039795,0.0001601,2]
[398038787,1765325432375,-150.0,0.000162,2]
[398038788,1765325432385,-150.0,0.000162,2]
[398038789,1765325432394,-150.0,0.000162,2]
[398038790,1765325432403,-150.0,0.000162,2]
[398038791,1765325432412,-150.0,0.000162,2]
[398038792,1765325432421,-201.24982805,0.000162,2]
[398038793,1765325432430,-999.0,0.00016406,3]
[398038794,1765325432440,-209.0,0.00016406,2]
[398038795,1765325432449,-1742.0,0.00016447,2]
[398038796,1765325432459,-300.0,0.00016478,2]
[398038797,1765325432468,-2430.09,0.00016478,2]
[398038798,1765325432478,-589.0,0.0001648,2]
[398038799,1765325432487,-150.0,0.0001656,2]
[398038800,1765325432496,-75680.3538,0.00016722,2]
[398038801,1765325432506,-369.50039795,0.0001682,2]
[398038802,1765325432515,-157.06206171,0.0001682,2]
[398038803,1765325432524,-2072.79868508,0.0001682,2]
[398038805,1765325432533,-427.331,0.00016821,2]
[398038807,1765325432542,-150.0,0.0001692,2]
[398038809,1765325432551,-499.99,0.00016922,2]
[398038811,1765325432561,-2072.79868507,0.0001694,2]
[398038813,1765325432570,-250.0,0.00017,2]
[398038815,1765325432580,-848.0,0.00017038,2]
[398038816,1765325432590,-2072.79868507,0.0001706,2]
[398038817,1765325432599,-467.67527794,0.00017172,2]
[398038818,1765325432853,-429.35061537,0.00017172,2]
[398038819,1765325432888,-594.37233454,0.00017172,2]
[398038820,1765325432904,-3911.77765298,0.00017172,2]
[398038821,1765325432914,-2072.79868507,0.0001718,2]
[398038822,1765325432923,-463.69,0.00017278,2]
[398038823,1765325432932,-150.0,0.0001728,2]
[398038824,1765325432942,-1434.30050931,0.000173,2]
[398038825,1765325432954,-565.69949069,0.000173,2]
[398038826,1765325432963,-2072.79868507,0.000173,2]
[398038827,1765325432972,-2072.79868507,0.0001742,2]
[398038828,1765325432983,-1469.93,0.0001751,2]
[398038829,1765325432992,-2072.79868507,0.0001754,2]
[398038830,1765325433001,-150.0,0.0001764,2]
[398038831,1765325433011,-2072.79868507,0.0001766,2]
[398038832,1765325433020,-2072.79868507,0.0001778,2]
[398038833,1765325433029,-5000.0,0.000178,2]
[398038834,1765325433039,-500.0,0.00017899,2]
[398038835,1765325433048,-2072.79868507,0.000179,2]
[398038836,1765325433057,-1260.91983198,0.000179,2]
[398038837,1765325433067,-150.0,0.00017929,2]
[398038838,1765325433076,-13468.7412,0.0001799,2]
[398038839,1765325433085,-150.0,0.00017994,2]
[398038840,1765325433096,-931.4469135,0.00017998,2]
[398038841,1765325433106,-1204.0508432,0.00017998,2]
[398038842,1765325433116,-500.0,0.00017999,2]
[398038843,1765325433125,-500.0,0.00017999,2]
[398038844,1765325433135,-500.0,0.00017999,2]
[398038845,1765325433144,-500.0,0.00017999,2]
[398038846,1765325433153,-500.0,0.00017999,2]
[398038847,1765325433163,-500.0,0.00017999,2]
[398038848,1765325433172,-189.06448687,0.00018,2]
[398038849,1765325433181,-150.0,0.00018,2]
[398038850,1765325433191,-26707.06009005,0.00018,2]
[398038851,1765325433204,-9358.74254055,0.00018,2]
[398038852,1765325433263,-334.2368,0.00017999,2]
[398038853,1765325433275,-165.7632,0.00017999,2]
[398038854,1765325433284,-500.0,0.00017999,2]
[398038855,1765325433294,-1877.05062997,0.00018,2]
[398038880,1765325438565,-570.58719418,0.000179,3]
[398038881,1765325438575,-403.90178717,0.00017999,2]
[398038882,1765325438586,-25.51101865,0.00018,2]
[398038884,1765325438794,-24845.04712779,0.00018,2]
[398038886,1765325438806,-305.9892,0.00018,2]
[398038888,1765325438818,-379.02057778,0.00018,2]
[398038953,1765325440515,-166.1040333,0.00017894,2]
[398038954,1765325440525,-318.01426672,0.00018,2]
[398038955,1765325440537,-1877.68199999,0.00018,2]
[398038956,1765325440549,-1994.3,0.00018,2]
[398038957,1765325440797,-2088.64481692,0.00018,2]
[398038969,1765325443389,-328.26696821,0.00018,2]
[398038972,1765325443401,-2571.67856,0.00018,2]
[398038973,1765325443427,-488.750531,0.00018,2]
[398038974,1765325443439,-803.00093127,0.00018,2]
[398038975,1765325443451,-507.20615774,0.00018,2]
[398038976,1765325443466,-6978.38843541,0.00018,2]
[398038977,1765325443477,-872.68780708,0.00018,2]
[398038978,1765325443518,-1208.0,0.00018,2]
[398038979,1765325443529,-23369.47328461,0.00018,2]
[398038980,1765325443649,-727.45672583,0.00018,2]
[398038981,1765325443712,-439.12669936,0.00018,2]
[398038989,1765325446302,-166.10403329,0.000179,2]
[398038990,1765325446311,-573.83596671,0.00018,2]
[398038991,1765325446554,-900.862616,0.00018,2]
[398039072,1765325945140,5524.0,0.00014,5]
[398039082,1765326358786,316.22,9.85e-05,2]
[398039088,1765326551139,-2722.9826477,0.0001,2]
[398039089,1765326551160,-2575.6225523,0.0001,2]
[398039116,1765326631795,-600.0,0.0001,2]
[398039119,1765326631808,-667.06812533,0.0001,2]
[398039121,1765326631817,-267.05329942,0.000107,2]
[398039123,1765326631826,-1000.0,0.00015099,3]
[398039125,1765326631838,-1200.0,0.00015999,2]
[398039127,1765326631848,-300.0,0.00015999,2]
[398039128,1765326631858,-300.0,0.00015999,2]
[398039130,1765326631866,-21327.50610205,0.00016,4]
[398039133,1765326631886,-4790.94264816,0.00016,4]
[398039136,1765326631898,-6878.21148148,0.00016,4]
[398039163,1765326639520,-1002.97,0.00016,4]
[398039164,1765326639587,-642.2986497,0.00016,4]
[398039165,1765326639598,-270.2701,0.00016,4]
[398039166,1765326639610,-653.68413682,0.00016,4]
[398039167,1765326639947,-61637.7766813,0.00016,4]
[398039168,1765326639956,-480.60611659,0.00016011,2]
[398039169,1765326639966,-1000.0,0.00016021,2]
[398039170,1765326639976,-150.0,0.00016189,2]
[398039171,1765326639985,-250.0,0.00016189,2]
[398039172,1765326639994,-150.0,0.000162,2]
[398039173,1765326640003,-3091.61900348,0.000162,5]
[398039174,1765326640012,-166.04,0.00016278,2]
[398039175,1765326640022,-200.0,0.0001634,2]
[398039177,1765326640031,-225.47,0.00016438,2]
[398039178,1765326640040,-800.0,0.00016438,2]
[398039179,1765326640050,-245.3491,0.00016522,2]
[398039180,1765326640059,-66288.0562,0.00016522,2]
[398039181,1765326640068,-200.0,0.00016561,2]
[398039182,1765326640077,-358.13707228,0.000166,2]
[398039183,1765326640086,-311.1,0.00016612,2]
[398039184,1765326640095,-215.0738,0.00016612,2]
[398039185,1765326640104,-300.0,0.00016621,2]
[398039186,1765326640113,-300.0,0.00016621,2]
[398039187,1765326640123,-341.865,0.00016621,2]
[398039188,1765326640133,-500.0,0.00016621,2]
[398039189,1765326640143,-500.0,0.00016621,2]
[398039190,1765326640152,-500.0,0.00016621,2]
[398039191,1765326640162,-600.0,0.00016622,2]
[398039192,1765326640172,-166.04,0.00016815,2]
[398039193,1765326640181,-297.83676494,0.000169,2]
[398039194,1765326640190,-180.0,0.0001696,2]
[398039195,1765326640199,-173.0,0.00016963,2]
[398039196,1765326640209,-153.652919,0.00016986,2]
[398039197,1765326640218,-54283.05,0.00016986,2]
[398039198,1765326640227,-2011.62999758,0.00016999,2]
[398039199,1765326640236,-500.0,0.00016999,2]
[398039200,1765326640246,-203.12579513,0.00016999,2]
[398039201,1765326640255,-181.81301262,0.00016999,2]
[398039202,1765326640264,-476.35746459,0.00016999,2]
[398039203,1765326640273,-250.0,0.00017,2]
[398039204,1765326640282,-2299.99999702,0.00017,2]
[398039205,1765326640291,-776.85374483,0.00017,2]
[398039206,1765326640300,-1914731.88294759,0.00017,2]
[398039207,1765326640309,-164.795194,0.00017,2]
[398039208,1765326640320,-173.0,0.00017031,2]
[398039209,1765326640330,-297.83676494,0.00017067,2]
[398039210,1765326640339,-218.91418656,0.00017099,2]
[398039211,1765326640351,-1000.0,0.00017099,2]
[398039212,1765326640360,-620.0,0.00017099,2]
[398039213,1765326640369,-200.0,0.00017099,2]
[398039214,1765326640378,-207.4,0.00017099,2]
[398039215,1765326640387,-200.15744202,0.00017099,2]
[398039216,1765326640395,-167.95809421,0.00017099,2]
[398039217,1765326640405,-621.78829552,0.00017099,2]
[398039218,1765326640414,-510.0,0.00017119,2]
[398039219,1765326640423,-173.0,0.00017153,2]
[398039220,1765326640433,-173.0,0.00017159,2]
[398039221,1765326640442,-600.0,0.0001717,2]
[398039222,1765326640452,-552.74,0.00017178,2]
[398039223,1765326640462,-297.83676494,0.00017233,2]
[398039224,1765326640471,-552.74,0.0001726,2]
[398039225,1765326640481,-356.15,0.0001726,2]
[398039226,1765326640490,-552.74,0.0001726,2]
[398039227,1765326640500,-405.23,0.0001726,2]
[398039228,1765326640510,-1215.91,0.0001726,2]
[398039229,1765326640519,-463.69,0.0001726,2]
[398039230,1765326640529,-1105.42,0.0001726,2]
[398039231,1765326640539,-173.0,0.00017269,2]
[398039232,1765326640548,-173.0,0.00017345,2]
[398039233,1765326640556,-166.04,0.00017353,2]
[398039234,1765326640566,-173.0,0.0001743,2]
[398039235,1765326640575,-500.0,0.00017442,2]
[398039236,1765326640585,-178.09,0.00017478,2]
[398039237,1765326640594,-927.37,0.00017478,2]
[398039238,1765326640605,-2000.0,0.000175,2]
[398039239,1765326640614,-1600.0,0.00017534,2]
[398039240,1765326640624,-173.0,0.00017544,2]
[398039241,1765326640634,-1680.0,0.0001758,2]
[398039242,1765326640644,-173.0,0.0001758,2]
[398039243,1765326640654,-173.0,0.00017628,2]
[398039244,1765326640663,-1000.0,0.00017647,2]
[398039245,1765326640678,-600.0,0.00017718,2]
[398039246,1765326640687,-158.49077723,0.00017723,2]
[398039247,1765326640696,-1000.0,0.000178,2]
[398039248,1765326640706,-151.0,0.0001783,2]
[398039249,1765326640715,-173.0,0.00017835,2]
[398039250,1765326640727,-173.0,0.00017849,2]
[398039251,1765326640738,-200.0,0.00017856,2]
[398039252,1765326640747,-151.0,0.00017864,2]
[398039253,1765326640757,-166.04,0.0001789,2]
[398039254,1765326640767,-173.0,0.00017896,2]
[398039255,1765326640778,-151.0,0.00017898,2]
[398039256,1765326640787,-1000.0,0.00017899,3]
[398039257,1765326640796,-1000.0,0.000179,2]
[398039258,1765326640806,-151.0,0.00017932,2]
[398039259,1765326640815,-1323.0,0.00017936,2]
[398039260,1765326640824,-611.0,0.00017936,2]
[398039261,1765326640835,-1626.749,0.00017936,2]
[398039262,1765326640845,-3446.0,0.00017936,2]
[398039263,1765326640855,-1259.0,0.00017936,2]
[398039264,1765326640865,-614.0,0.00017936,2]
[398039265,1765326640875,-253.0,0.00017936,2]
[398039266,1765326640885,-6514.0,0.00017936,2]
[398039267,1765326640896,-605.048,0.00017936,2]
[398039268,1765326640906,-173.0,0.00017941,2]
[398039269,1765326640916,-151.0,0.00017966,2]
[398039270,1765326640926,-500.0,0.00017973,2]
[398039271,1765326640937,-150.0,0.0001798,2]
[398039272,1765326640947,-323652.2114712,0.00017981,2]
[398039273,1765326640957,-4233.0367331,0.00017981,2]
[398039274,1765326640967,-151.0,0.00017981,2]
[398039275,1765326640977,-156.019447,0.00017981,2]
[398039276,1765326640987,-151.0,0.00017981,2]
[398039277,1765326640996,-151.52747314,0.00017994,2]
[398039278,1765326641005,-150.0,0.00017994,2]
[398039279,1765326641015,-500.0,0.00017999,2]
[398039280,1765326641024,-500.0,0.00017999,2]
[398039281,1765326641034,-500.0,0.00017999,2]
[398039282,1765326641043,-500.0,0.00017999,2]
[398039283,1765326641052,-500.0,0.00017999,2]
[398039284,1765326641062,-500.0,0.00017999,2]
[398039285,1765326641072,-500.0,0.00017999,2]
[398039286,1765326641081,-500.0,0.00017999,2]
[398039287,1765326641091,-565.82453131,0.00017999,2]
[398039288,1765326641101,-1000.0,0.00017999,2]
[398039289,1765326641111,-271466.7918012,0.00018,2]
[398039290,1765326641121,-198867.84474403,0.00018,2]
[398039291,1765326641130,-1354908.74713425,0.00018,2]
[398039292,1765326641143,-406.95691,0.00018,2]
[398039296,1765326644319,-255.255907,0.00016986,2]
[398039297,1765326644331,-255.255907,0.00017,2]
[398039298,1765326644340,-218.74113062,0.000174,2]
[398039299,1765326644453,-79.09563432,0.000174,2]
[398039300,1765326644462,-663.40436568,0.00017736,2]
[398039301,1765326644592,-4091.51763432,0.00017736,2]
[398039302,1765326644603,-255.255907,0.00017981,2]
[398039303,1765326644612,-16056.21718368,0.00018,2]
[398039305,1765326645543,-272.0,0.00016664,2]
[398039306,1765326645553,-255.255907,0.00016986,2]
[398039307,1765326645562,-10232.78884285,0.00018,2]
[398039310,1765326657107,267.40929222,0.00025,120]
[398039316,1765327431109,175.0,0.000135,4]
[398039317,1765327607145,-250.77723919,0.00016191,2]
[398039321,1765327808585,2000.0,0.00025,120]
[398039325,1765327831756,-166.66,0.00015473,2]
[398039327,1765327831765,-166.66,0.00015798,2]
[398039329,1765327831776,-166.66,0.00016124,2]
[398039331,1765327831785,-22.71476081,0.00016191,2]
[398039333,1765327831796,-479.69537659,0.00016386,2]
[398039335,1765327831805,-4677.50388895,0.00016438,2]
[398039337,1765327831816,-9.74611105,0.00016438,2]
[398039338,1765327831824,-166.66,0.0001645,2]
[398039339,1765327831834,-1200.0,0.00016476,2]
[398039340,1765327831843,-5372.9,0.00016477,2]
[398039341,1765327831852,-254.06,0.00016496,3]
[398039342,1765327831861,-550.0,0.00016521,2]
[398039343,1765327831870,-699.0,0.00016632,2]
[398039344,1765327831879,-154.0,0.00016641,2]
[398039345,1765327831888,-200.0,0.00016641,2]
[398039346,1765327831897,-537.0,0.00016657,2]
[398039347,1765327831907,-168.0,0.00016752,2]
[398039348,1765327831916,-166.66,0.00016776,2]
[398039349,1765327831925,-179.9,0.00016783,2]
[398039350,1765327831934,-183.52251733,0.0001696,2]
[398039351,1765327831943,-1847.55325592,0.00016984,2]
[398039352,1765327831981,-923.88800001,0.00016984,2]
[398039353,1765327837660,-846.55874407,0.00016984,2]
[398039354,1765327837669,-219.94,0.00017,2]
[398039355,1765327837679,-3618.0,0.00017063,2]
[398039356,1765327837688,-1000.0,0.00017099,2]
[398039357,1765327837697,-620.0,0.00017099,2]
[398039358,1765327837707,-166.66,0.00017101,2]
[398039359,1765327837716,-3618.0,0.00017207,2]
[398039360,1765327837726,-3618.0,0.00017252,2]
[398039361,1765327837735,-3618.0,0.00017261,2]
[398039362,1765327837745,-200.0,0.00017365,2]
[398039363,1765327837754,-297.69804651,0.00017501,2]
[398039364,1765327837764,-3618.0,0.00017504,2]
[398039365,1765327837774,-3618.0,0.00017517,2]
[398039366,1765327837783,-297.83676494,0.00017567,2]
[398039367,1765327837792,-935.0,0.00017628,2]
[398039368,1765327837801,-1000.0,0.00017647,2]
[398039369,1765327837810,-1000.0,0.000177,2]
[398039370,1765327837819,-297.83676494,0.00017733,2]
[398039371,1765327837829,-1000.0,0.000178,2]
[398039372,1765327837838,-300.0,0.0001781,2]
[398039373,1765327837848,-3618.0,0.00017828,2]
[398039374,1765327837857,-200.0,0.00017856,2]
[398039375,1765327837867,-297.83676494,0.000179,2]
[398039377,1765327837876,-1195.0,0.00017936,2]
[398039379,1765327837885,-910.0,0.00017936,2]
[398039381,1765327837894,-150.0,0.00017936,2]
[398039383,1765327837903,-150.166,0.00017936,2]
[398039385,1765327837912,-500.0,0.00017973,2]
[398039387,1765327837920,-150.0,0.00017989,2]
[398039389,1765327837929,-199791.3234285,0.00017995,2]
[398039391,1765327837938,-388.18985942,0.00017999,2]
[398039393,1765327837947,-340.19331467,0.00017999,2]
[398039395,1765327837956,-150.0,0.00017999,2]
[398039397,1765327837966,-500.0,0.00017999,2]
[398039399,1765327837975,-183.45022521,0.00017999,2]
[398039401,1765327837984,-500.0,0.00017999,2]
[398039403,1765327837993,-500.0,0.00017999,2]
[398039405,1765327838002,-281.33654774,0.00017999,2]
[398039407,1765327838011,-489.3224208,0.00017999,2]
[398039409,1765327838020,-500.0,0.00017999,2]
[398039410,1765327838029,-632.0,0.00018,2]
[398039413,1765327838038,-18415.85613959,0.00018,2]
[398039415,1765327838055,-638.50185406,0.00018,2]
[398039655,1765327840579,-257.07574889,0.00018,2]
[398039657,1765327840591,-277.596319,0.00018,2]
[398039660,1765327840607,-398.95878442,0.00018,2]
[398039961,1765327844045,-242.0,0.00017588,2]
[398039962,1765327844055,-82.71782894,0.00018,2]
[398039963,1765327844186,-27.86413771,0.00018,2]
[398040136,1765328823009,250.0,0.00022,30]
[398040137,1765328945138,-159.65,0.00013335,2]
[398040138,1765328945158,-260.0,0.00013335,2]
[398040139,1765328945177,-2056.44519215,0.00013686,2]
[398040140,1765328945196,-742.54740597,0.00013699,2]
[398040149,1765329031749,-52.63259403,0.00013699,2]
[398040151,1765329031758,-175.95,0.00015881,2]
[398040153,1765329031768,-200.0,0.0001603,2]
[398040155,1765329031777,-284.0,0.0001642,2]
[398040157,1765329031786,-1200.0,0.0001642,2]
[398040158,1765329031795,-4381.34301595,0.00016421,2]
[398040161,1765329031807,-12982.62852159,0.00016421,2]
[398040162,1765329032010,-832.0711081,0.00016421,2]
[398040163,1765329032024,-642.55591145,0.00016421,2]
[398040168,1765329037897,-10111.1220421,0.00016421,2]
[398040169,1765329037968,-284.94490973,0.00016421,2]
[398040170,1765329038012,-857.3756176,0.00016421,2]
[398040171,1765329038124,-31875.60597348,0.00016421,2]
[398040172,1765329038134,-500.0,0.00016521,2]
[398040173,1765329038144,-500.0,0.00016521,2]
[398040174,1765329038154,-502.54291222,0.00016521,2]
[398040175,1765329038164,-500.0,0.00016521,2]
[398040176,1765329038174,-500.0,0.00016521,2]
[398040177,1765329038184,-500.0,0.00016521,2]
[398040178,1765329038195,-500.41580952,0.00016521,2]
[398040179,1765329038206,-500.0,0.00016521,2]
[398040180,1765329038216,-500.0,0.00016521,2]
[398040181,1765329038226,-500.0,0.00016521,2]
[398040183,1765329038236,-500.0,0.00016521,2]
[398040184,1765329038246,-500.0,0.00016521,2]
[398040187,1765329038256,-500.0,0.00016521,2]
[398040189,1765329038266,-715.2,0.00016521,2]
[398040191,1765329038276,-500.0,0.00016521,2]
[398040192,1765329038285,-500.0,0.00016521,2]
[398040195,1765329038295,-500.0,0.00016521,2]
[398040197,1765329038305,-500.84711083,0.00016521,2]
[398040199,1765329038316,-399.44562156,0.00016521,2]
[398040214,1765329038911,-126.82437844,0.00016521,2]
[398040215,1765329038921,-161.96599062,0.00016521,2]
[398040218,1765329039868,-434.93891923,0.00016521,2]
[398040219,1765329039878,-500.0,0.00016521,2]
[398040220,1765329039888,-500.0,0.00016521,2]
[398040221,1765329039897,-500.0,0.00016521,2]
[398040222,1765329039907,-500.0,0.00016521,2]
[398040223,1765329039916,-500.0,0.00016521,2]
[398040224,1765329039927,-500.0,0.00016521,2]
[398040225,1765329039936,-500.0,0.00016521,2]
[398040226,1765329039945,-500.0,0.00016521,2]
[398040227,1765329039955,-504.11016996,0.00016521,2]
[398040228,1765329039968,-500.0,0.00016521,2]
[398040229,1765329039977,-500.0,0.00016521,2]
[398040230,1765329039987,-500.0,0.00016521,2]
[398040231,1765329039997,-500.0,0.00016521,2]
[398040232,1765329040007,-500.0,0.00016521,2]
[398040233,1765329040019,-595.16,0.00016521,2]
[398040234,1765329040028,-500.0,0.00016521,2]
[398040235,1765329040038,-395.49803965,0.00016521,2]
[398040236,1765329040048,-500.0,0.00016521,2]
[398040237,1765329040058,-500.0,0.00016521,2]
[398040238,1765329040067,-500.0,0.00016521,2]
[398040239,1765329040078,-500.0,0.00016521,2]
[398040240,1765329040087,-500.0,0.00016521,2]
[398040241,1765329040098,-319.31497448,0.00016521,2]
[398040242,1765329040108,-500.0,0.00016521,2]
[398040243,1765329040117,-1102.1,0.00016521,2]
[398040244,1765329040127,-751.81,0.00016521,2]
[398040245,1765329040137,-911.06,0.00016521,2]
[398040246,1765329040148,-500.0,0.00016521,2]
[398040247,1765329040159,-500.0,0.00016521,2]
[398040248,1765329040169,-500.0,0.00016521,2]
[398040249,1765329040179,-500.0,0.00016521,2]
[398040250,1765329040191,-500.0,0.00016521,2]
[398040251,1765329040200,-105.88829976,0.00016521,2]
[398040252,1765329040222,-394.11170024,0.00016521,2]
[398040253,1765329040232,-122.75735948,0.00016521,2]
[398040254,1765329040249,-377.24264052,0.00016521,2]
[398040255,1765329040259,-272.44740079,0.00016521,2]
[398040256,1765329040270,-227.55259921,0.00016521,2]
[398040257,1765329040280,-455.2647059,0.00016521,2]
[398040258,1765329040331,-44.7352941,0.00016521,2]
[398040259,1765329040345,-416.5297059,0.00016521,2]
[398040260,1765329040360,-83.4702941,0.00016521,2]
[398040261,1765329040371,-314.66424277,0.00016521,2]
[398040262,1765329040383,-185.33575723,0.00016521,2]
[398040263,1765329040393,-253.96994284,0.00016521,2]
[398040267,1765329042920,-246.03005716,0.00016521,2]
[398040268,1765329042932,-500.0,0.00016521,2]
[398040269,1765329042942,-210.17165713,0.00016521,2]
[398040270,1765329042953,-456.25834287,0.00016521,2]
[398040271,1765329042962,-500.0,0.00016521,2]
[398040272,1765329042971,-470.80054961,0.00016521,2]
[398040273,1765329042983,-37.39945039,0.00016521,2]
[398040274,1765329042993,-447.90554961,0.00016521,2]
[398040275,1765329043037,-52.09445039,0.00016521,2]
[398040276,1765329043046,-437.55162896,0.00016521,2]
[398040277,1765329043058,-77.65837104,0.00016521,2]
[398040278,1765329043067,-500.0,0.00016521,2]
[398040279,1765329043077,-158.77464615,0.00016521,2]
[398040280,1765329043149,-331.74141,0.00016521,2]
[398040281,1765329045774,-126.41394385,0.00016521,2]
[398040282,1765329045784,-500.0,0.00016521,2]
[398040283,1765329045794,-500.0,0.00016521,2]
[398040284,1765329045803,-2697.38,0.00016521,2]
[398040285,1765329045813,-576.64,0.00016521,2]
[398040286,1765329045823,-586.91,0.00016521,2]
[398040287,1765329045833,-717.31,0.00016521,2]
[398040288,1765329045844,-812.97,0.00016521,2]
[398040289,1765329045857,-615.45,0.00016521,2]
[398040290,1765329045867,-151.0,0.00016617,2]
[398040291,1765329045878,-500.0,0.00016619,2]
[398040292,1765329045887,-596.42,0.00016619,2]
[398040293,1765329045898,-500.0,0.00016619,2]
[398040294,1765329045909,-500.0,0.00016619,2]
[398040295,1765329045919,-500.0,0.00016619,2]
[398040296,1765329045929,-825.79,0.00016619,2]
[398040297,1765329045940,-762.6,0.00016619,2]
[398040298,1765329045950,-300.0,0.00016619,2]
[398040299,1765329045960,-500.0,0.00016619,2]
[398040300,1765329045969,-507.98204623,0.00016619,2]
[398040301,1765329045979,-500.0,0.00016619,2]
[398040302,1765329045989,-500.0,0.00016619,2]
[398040303,1765329045999,-500.0,0.00016619,2]
[398040304,1765329046009,-500.0,0.00016619,2]
[398040305,1765329046019,-592.62,0.00016619,2]
[398040306,1765329046028,-500.0,0.00016619,2]
[398040307,1765329046038,-500.0,0.00016619,2]
[398040308,1765329046048,-500.0,0.00016619,2]
[398040309,1765329046057,-201.16471024,0.00016619,2]
[398040310,1765329046067,-550.89,0.00016619,2]
[398040311,1765329046076,-500.0,0.00016619,2]
[398040312,1765329046086,-1502.96,0.00016619,2]
[398040313,1765329046097,-500.0,0.00016619,2]
[398040314,1765329046107,-500.0,0.00016619,2]
[398040315,1765329046117,-500.0,0.00016619,2]
[398040316,1765329046127,-500.0,0.00016619,2]
[398040317,1765329046137,-500.0,0.00016619,2]
[398040318,1765329046147,-698.84,0.00016619,2]
[398040319,1765329046157,-500.0,0.00016619,2]
[398040320,1765329046167,-500.0,0.00016619,2]
[398040321,1765329046176,-500.0,0.00016619,2]
[398040322,1765329046186,-500.0,0.00016619,2]
[398040323,1765329046195,-766.52,0.00016619,2]
[398040324,1765329046205,-636.73,0.00016619,2]
[398040326,1765329046214,-933.03,0.00016619,2]
[398040327,1765329046224,-753.98,0.00016619,2]
[398040328,1765329046233,-502.77617004,0.00016619,2]
[398040330,1765329046243,-500.0,0.00016619,2]
[398040332,1765329046252,-500.0,0.00016619,2]
[398040334,1765329046261,-500.0,0.00016619,2]
[398040335,1765329046271,-500.0,0.00016619,2]
[398040336,1765329046281,-441.38620857,0.00016619,2]
[398040337,1765329046291,-886.3,0.00016619,2]
[398040338,1765329046300,-500.0,0.00016619,2]
[398040339,1765329046310,-500.0,0.00016619,2]
[398040340,1765329046320,-500.0,0.00016619,2]
[398040341,1765329046329,-500.0,0.00016619,2]
[398040342,1765329046339,-685.37,0.00016619,2]
[398040343,1765329046349,-502.13092801,0.00016619,2]
[398040344,1765329046359,-500.0,0.00016619,2]
[398040345,1765329046369,-500.0,0.00016619,2]
[398040346,1765329046378,-500.0,0.00016619,2]
[398040347,1765329046388,-500.0,0.00016619,2]
[398040348,1765329046397,-640.41,0.00016619,2]
[398040349,1765329046407,-500.0,0.00016619,2]
[398040350,1765329046417,-500.0,0.00016619,2]
[398040351,1765329046427,-2004.11,0.00016619,2]
[398040352,1765329046437,-500.0,0.00016619,2]
[398040353,1765329046447,-636.27340277,0.00016619,2]
[398040354,1765329046456,-500.0,0.00016619,2]
[398040355,1765329046466,-500.0,0.00016619,2]
[398040356,1765329046476,-500.0,0.00016619,2]
[398040357,1765329046486,-604.75,0.00016619,2]
[398040358,1765329046495,-500.0,0.00016619,2]